bitfinex/quotes_SOLUSD_20220102
["timestamp","ask_amount","ask_price","bid_price","bid_amount"]
[1641157328253,9.0464,175.57,175.48,2.11391836]
[1641157329553,9.0464,175.57,175.5,1.61391836]
[1641157330157,8.5464,175.57,175.48,1.61391836]
[1641157330554,8.5464,175.57,175.48,10.15981836]
[1641157330754,8.5464,175.57,175.48,10.91981836]
[1641157330954,9.0464,175.57,175.48,10.65981836]
[1641157331180,8.5464,175.57,175.49,1.61391836]
[1641157331382,9.0464,175.57,175.49,1.61391836]
[1641157333193,8.5464,175.57,175.49,1.61391836]
[1641157333384,8.5464,175.57,175.49,1.87391836]
[1641157334586,8.5464,175.57,175.49,1.61391836]
[1641157334887,8.5464,175.57,175.5,1.61391836]
[1641157335492,8.5464,175.57,175.49,1.61391836]
[1641157336991,8.5464,175.57,175.48,1.2749]
[1641157337194,8.5464,175.57,175.48,1.5349]
[1641157339092,8.5464,175.57,175.48,9.3749]
[1641157339392,9.0464,175.57,175.48,1.7749]
[1641157339695,9.0464,175.57,175.48,9.8213]
[1641157340293,9.0464,175.57,175.48,10.3213]
[1641157343997,9.0464,175.57,175.48,9.8213]
[1641157344898,9.0464,175.57,175.48,10.3213]
[1641157345099,8.5464,175.57,175.48,10.3213]
[1641157346402,9.0464,175.57,175.48,10.3213]
[1641157353114,9.0464,175.57,175.48,9.8213]
[1641157354113,9.0464,175.57,175.48,17.9213]
[1641157354614,9.0464,175.57,175.48,19.53521836]
[1641157355019,9.0464,175.57,175.48,11.43521836]
[1641157356716,9.0464,175.57,175.48,10.3213]
[1641157357315,10.63617643,175.57,175.48,10.3213]
[1641157357915,9.0464,175.57,175.48,10.3213]
[1641157360520,8.5464,175.57,175.48,10.5813]
[1641157361223,8.5464,175.57,175.48,10.3213]
[1641157361619,9.0464,175.57,175.48,10.3213]
[1641157362621,9.0464,175.57,175.48,10.5813]
[1641157365750,9.0464,175.57,175.48,10.3213]
[1641157365949,9.0464,175.57,175.48,9.0464]
[1641157366548,9.0464,175.57,175.48,0.5]
[1641157366850,9.0464,175.57,175.47,9.0471]
[1641157367249,8.5472,175.53,175.47,9.0471]
[1641157369953,8.5472,175.53,175.47,0.5]
[1641157370355,8.5472,175.53,175.46,9.0474]
[1641157371357,9.0472,175.53,175.45,9.7995]
[1641157371559,15.5942,175.53,175.44,1.61391836]
[1641157371756,8.1,175.52,175.44,1.61391836]
[1641157371957,8.5499,175.48,175.44,1.61391836]
[1641157373161,8.5499,175.48,175.41,1.61391836]
[1641157373862,9.0499,175.48,175.41,2.11391836]
[1641157374060,9.0499,175.48,175.41,0.5]
[1641157374262,9.0499,175.48,175.4,1.61391836]
[1641157374463,17.1499,175.48,175.4,1.61391836]
[1641157375663,8.553,175.41,175.34,80.85391836]
[1641157375865,8.553,175.41,175.34,81.35391836]
[1641157376063,8.553,175.41,175.34,81.61391836]
[1641157376566,8.553,175.41,175.34,82.82561836]
[1641157377765,8.553,175.41,175.34,82.56561836]
[1641157378565,8.553,175.41,175.34,2.11391836]
[1641157379168,8.553,175.41,175.34,0.5]
[1641157379365,8.553,175.41,175.33,20.90197771]
[1641157380767,9.053,175.41,175.33,20.90197771]
[1641157381168,9.053,175.41,175.33,19.28805935]
[1641157381768,8.553,175.41,175.33,19.28805935]
[1641157387607,8.553,175.41,175.33,19.54805935]
[1641157388302,8.553,175.41,175.33,21.16197771]
[1641157389106,8.553,175.41,175.33,19.54805935]
[1641157389505,8.553,175.41,175.33,19.28805935]
[1641157391406,9.053,175.41,175.33,19.28805935]
[1641157392406,9.053,175.41,175.33,18.78805935]
[1641157394908,17.153,175.41,175.33,18.78805935]
[1641157395709,18.57969368,175.41,175.33,18.78805935]
[1641157395911,20.16947011,175.41,175.33,18.78805935]
[1641157396609,1.58977643,175.4,175.33,18.78805935]
[1641157396811,8.5566,175.37,175.33,18.78805935]
[1641157398011,1.58977643,175.4,175.33,18.78805935]
[1641157398714,1.58977643,175.42,175.33,18.78805935]
[1641157398912,1.58977643,175.42,175.34,1.3346]
[1641157399613,2.08977643,175.42,175.34,1.3346]
[1641157399816,8.554,175.4,175.34,1.3346]
[1641157402615,1.58977643,175.42,175.34,9.6946]
[1641157402815,1.58977643,175.42,175.35,1.42669368]
[1641157403015,7.643e-05,175.42,175.36,8.1]
[1641157403415,7.643e-05,175.42,175.37,1.42669368]
[1641157403617,3.23062698,175.46,175.38,8.1]
[1641157403828,383.81560604,175.49,175.39,30.75040869]
[1641157404020,383.81560604,175.49,175.42,8.5489]
[1641157404219,3.23062698,175.49,175.42,8.5489]
[1641157404420,3.23062698,175.49,175.42,9.3089]
[1641157404827,8.5491,175.5,175.42,9.3089]
[1641157405119,8.5481,175.52,175.42,9.3089]
[1641157405419,9.0481,175.52,175.42,9.3089]
[1641157406719,8.5481,175.52,175.42,9.3089]
[1641157406920,9.0481,175.52,175.42,9.3089]
[1641157408121,9.0481,175.52,175.42,8.8089]
[1641157412028,9.0481,175.52,175.42,8.5489]
[1641157413430,9.0481,175.52,175.42,9.0489]
[1641157413632,9.0481,175.52,175.42,8.5489]
[1641157415432,9.0481,175.52,175.4,17.9416]
[1641157415631,9.0481,175.52,175.4,18.7016]
[1641157416032,9.0481,175.52,175.4,18.4416]
[1641157416738,9.0481,175.52,175.4,9.8918]
[1641157417037,9.0481,175.52,175.4,9.3918]
[1641157418063,8.1,175.51,175.4,1.2918]
[1641157418262,8.5508,175.46,175.4,1.2918]
[1641157418862,28.5026,175.51,175.4,1.2918]
[1641157419061,29.0026,175.51,175.4,1.2918]
[1641157419262,8.5502,175.48,175.4,1.2918]
[1641157419863,8.5502,175.48,175.4,1.7918]
[1641157420262,8.5502,175.48,175.4,1.2918]
[1641157420663,8.5502,175.48,175.4,9.842]
[1641157420864,8.5502,175.48,175.4,10.102]
[1641157422064,8.5502,175.48,175.4,10.602]
[1641157422972,8.5502,175.48,175.4,10.102]
[1641157423568,9.0502,175.48,175.4,1.2918]
[1641157429776,9.0502,175.48,175.4,1.5518]
[1641157433589,9.0502,175.48,175.4,1.2918]
[1641157433789,9.0502,175.48,175.39,75.8367]
[1641157433990,9.0502,175.48,175.39,76.3367]
[1641157434992,10.3367,175.48,175.39,76.3367]
[1641157435395,9.0502,175.48,175.39,76.3367]
[1641157435897,9.0502,175.48,175.39,84.4367]
[1641157436714,9.0502,175.48,175.4,1.3242]
[1641157438014,9.8539,175.48,175.4,1.3242]
[1641157438518,9.8539,175.48,175.39,0.5]
[1641157438717,25.5869,175.48,175.39,0.5]
[1641157438915,25.5869,175.48,175.34,2.6043]
[1641157439516,17.9869,175.48,175.35,38.48163339]
[1641157439716,9.0502,175.48,175.35,39.90832707]
[1641157440018,8.5502,175.48,175.36,29.92709368]
[1641157440217,8.5491,175.49,175.37,8.1]
[1641157440416,8.5491,175.49,175.37,11.25969368]
[1641157440617,8.5491,175.49,175.37,11.51969368]
[1641157440815,8.5491,175.49,175.41,8.5496]
[1641157441021,8.5491,175.49,175.41,8.8096]
[1641157441418,8.5491,175.49,175.41,9.3096]
[1641157444021,8.5491,175.49,175.42,29.92768474]
[1641157444219,8.5491,175.49,175.42,38.47708474]
[1641157445520,8.5491,175.49,175.42,38.73708474]
[1641157445720,8.5491,175.49,175.42,39.23708474]
[1641157448523,8.5491,175.49,175.42,9.0494]
[1641157449424,8.5491,175.49,175.42,8.5494]
[1641157451129,8.5491,175.49,175.42,8.8094]
[1641157452535,8.0491,175.49,175.42,8.8094]
[1641157454431,8.0491,175.49,175.42,8.5494]
[1641157456935,8.0491,175.49,175.42,9.0494]
[1641157459436,8.0491,175.49,175.42,9.3094]
[1641157461637,8.5485,175.5,175.42,9.3094]
[1641157466646,9.0485,175.5,175.42,9.3094]
[1641157467048,8.5485,175.5,175.42,9.3094]
[1641157471473,8.5485,175.5,175.42,9.0494]
[1641157471676,8.5485,175.5,175.42,8.5494]
[1641157471874,8.5485,175.5,175.42,9.0494]
[1641157472477,8.5485,175.5,175.42,8.5494]
[1641157472683,9.0485,175.5,175.37,8.1]
[1641157472884,8.1,175.49,175.33,18.78805935]
[1641157473076,8.5523,175.43,175.33,18.78805935]
[1641157473277,13.7393,175.43,175.33,18.78805935]
[1641157473477,15.66599368,175.43,175.33,18.78805935]
[1641157473777,14.2393,175.43,175.33,18.78805935]
[1641157474382,8.1,175.42,175.33,18.78805935]
[1641157474579,8.5556,175.38,175.33,18.78805935]
[1641157474978,9.0556,175.38,175.33,18.78805935]
[1641157477785,8.5556,175.38,175.33,18.78805935]
[1641157480889,9.0556,175.38,175.33,18.78805935]
[1641157481490,8.5556,175.38,175.33,18.78805935]
[1641157483091,9.0556,175.38,175.33,18.78805935]
[1641157496232,17.1556,175.38,175.33,18.78805935]
[1641157500944,8.5576,175.35,175.33,18.78805935]
[1641157501147,0.43667927,175.34,175.33,18.78805935]
[1641157502346,8.99487927,175.34,175.33,18.78805935]
[1641157502744,9.49487927,175.34,175.33,18.78805935]
[1641157512459,8.99487927,175.34,175.33,18.78805935]
[1641157512664,8.5582,175.34,175.33,24.41578001]
[1641157513063,8.5559,175.35,175.33,24.41578001]
[1641157523296,9.0559,175.35,175.33,24.41578001]
[1641157523496,0.43667927,175.34,175.33,18.78805935]
[1641157523698,8.99327927,175.34,175.33,18.78805935]
[1641157525697,8.88311127,175.34,175.33,18.78805935]
[1641157525997,8.5566,175.34,175.33,18.78805935]
[1641157526297,8.5566,175.34,175.33,21.82025931]
[1641157527801,8.5566,175.34,175.33,24.52594801]
[1641157529911,8.88311127,175.34,175.33,18.78805935]
[1641157530909,9.38311127,175.34,175.33,18.78805935]
[1641157533213,10.96294415,175.34,175.33,18.78805935]
[1641157535116,9.38311127,175.34,175.33,18.78805935]
[1641157538319,8.88311127,175.34,175.33,18.78805935]
[1641157538522,8.5566,175.34,175.33,24.52594801]
[1641157538920,10.11325718,175.34,175.33,18.78805935]
[1641157539623,10.61325718,175.34,175.33,18.78805935]
[1641157542042,10.93976845,175.34,175.33,18.78805935]
[1641157544543,9.38311127,175.34,175.33,18.78805935]
[1641157546749,8.5566,175.34,175.33,24.52594801]
[1641157546950,0.0066,175.34,175.33,29.44894801]
[1641157547148,1.55665718,175.36,175.35,9.74604065]
[1641157547348,3.23062698,175.4,175.36,56.55]
[1641157547548,8.1,175.47,175.38,68.0]
[1641157547751,559.53551084,175.5,175.38,74.842]
[1641157547948,3.16046411,175.45,175.38,74.842]
[1641157548150,3.16046411,175.45,175.38,75.342]
[1641157548752,3.16046411,175.45,175.38,103.21990627]
[1641157548948,3.66046411,175.45,175.38,103.47990627]
[1641157549148,3.66046411,175.45,175.38,75.602]
[1641157549555,3.66046411,175.45,175.38,84.1531]
[1641157549849,0.5,175.45,175.38,84.1531]
[1641157550049,0.5,175.45,175.38,83.6531]
[1641157550252,9.0504,175.49,175.38,114.85829775]
[1641157555954,8.5504,175.49,175.38,114.85829775]
[1641157556156,8.5504,175.49,175.38,9.0511]
[1641157556552,8.5504,175.49,175.38,8.5511]
[1641157556956,9.0504,175.49,175.36,17.8736]
[1641157557358,9.0504,175.49,175.36,18.3736]
[1641157557552,9.0504,175.49,175.36,18.1336]
[1641157557753,9.0504,175.49,175.36,18.6336]
[1641157558954,0.5,175.49,175.36,20.06029368]
[1641157559456,37.0987,175.54,175.36,20.06029368]
[1641157560756,8.5498,175.49,175.36,20.06029368]
[1641157560955,9.0498,175.49,175.36,20.06029368]
[1641157564157,9.0498,175.49,175.37,1.20643538]
[1641157564358,9.0498,175.49,175.4,8.5496]
[1641157564556,9.0498,175.49,175.4,8.8096]
[1641157564757,9.0498,175.49,175.4,9.3096]
[1641157565560,9.0498,175.49,175.4,8.8096]
[1641157566462,9.0498,175.49,175.4,9.3096]
[1641157567963,9.0498,175.49,175.4,8.8096]
[1641157569164,9.0498,175.49,175.4,0.26]
[1641157569365,9.0498,175.49,175.38,16.9107]
[1641157569969,9.0498,175.49,175.38,17.4107]
[1641157576275,9.0498,175.49,175.38,16.9107]
[1641157577779,9.0498,175.49,175.38,17.4107]
[1641157578580,9.0498,175.49,175.38,17.1507]
[1641157580080,9.0498,175.49,175.38,17.4107]
[1641157580483,9.0498,175.49,175.38,16.9107]
[1641157581480,9.0498,175.49,175.38,17.4107]
[1641157585708,8.5498,175.49,175.38,17.4107]
[1641157593514,8.5498,175.49,175.38,17.1507]
[1641157593914,8.5498,175.49,175.38,16.6507]
[1641157596918,8.5498,175.49,175.38,17.1507]
[1641157599721,8.5498,175.49,175.38,9.0507]
[1641157603127,1.3279,175.48,175.38,9.0507]
[1641157603325,8.551,175.45,175.38,9.0507]
[1641157610633,8.551,175.45,175.37,8.5519]
[1641157610832,9.051,175.45,175.35,17.84604065]
[1641157611233,9.051,175.45,175.35,18.34604065]
[1641157611832,9.051,175.45,175.35,26.89844065]
[1641157612131,9.051,175.45,175.35,26.39844065]
[1641157614536,10.2602,175.45,175.35,26.39844065]
[1641157617770,10.2602,175.45,175.35,26.89844065]
[1641157624177,10.2602,175.45,175.35,28.19104065]
[1641157629181,10.2602,175.45,175.35,26.89844065]
[1641157630984,10.2602,175.45,175.35,28.19424065]
[1641157633586,10.2602,175.45,175.35,19.64184065]
[1641157634485,10.2602,175.45,175.35,11.54184065]
[1641157635589,10.2602,175.45,175.35,20.09474065]
[1641157643818,10.2602,175.45,175.35,18.79894065]
[1641157654729,10.2602,175.45,175.35,10.24604065]
[1641157658633,10.2602,175.45,175.35,18.79884065]
[1641157667875,11.88062053,175.45,175.35,20.10364065]
[1641157669375,11.88062053,175.45,175.35,21.71095781]
[1641157671676,11.88062053,175.45,175.35,20.10364065]
[1641157672276,11.88062053,175.45,175.35,21.71095781]
[1641157673078,10.17142053,175.45,175.35,21.71095781]
[1641157673280,1.62042053,175.45,175.36,1.42669368]
[1641157673478,1.62042053,175.45,175.41,8.5494]
[1641157673678,1.62042053,175.46,175.41,8.5494]
[1641157673883,1.62042053,175.46,175.41,9.3094]
[1641157674480,1.62042053,175.5,175.41,9.3094]
[1641157674980,8.5492,175.49,175.41,9.3094]
[1641157676584,8.5492,175.49,175.41,10.6365]
[1641157679587,8.5486,175.5,175.41,10.6365]
[1641157680490,8.5486,175.5,175.41,10.3765]
[1641157681892,8.5486,175.5,175.41,10.6365]
[1641157688319,9.7574,175.5,175.41,10.6365]
[1641157688519,11.37782053,175.5,175.41,10.6365]
[1641157688919,11.37782053,175.5,175.41,10.3765]
[1641157689720,11.37782053,175.5,175.41,1.8271]
[1641157689922,1.62042053,175.49,175.41,1.8271]
[1641157690120,8.55,175.47,175.41,1.8271]
[1641157690318,8.55,175.47,175.41,2.0871]
[1641157694721,8.55,175.47,175.41,10.6367]
[1641157695230,8.55,175.47,175.41,2.0871]
[1641157699733,8.55,175.47,175.41,10.6368]
[1641157706747,8.5494,175.48,175.41,10.6368]
[1641157707247,8.5494,175.48,175.41,10.3768]
[1641157707446,8.5494,175.48,175.41,11.98411716]
[1641157708749,8.5494,175.48,175.41,10.3768]
[1641157724908,8.5494,175.48,175.41,10.6368]
[1641157725106,8.5489,175.49,175.41,10.6368]
[1641157725305,1.2088,175.5,175.41,10.6368]
[1641157725906,31.39652053,175.54,175.41,10.6368]
[1641157726106,1.3301,175.53,175.41,84.9352]
[1641157726305,8.5479,175.52,175.42,1.60731716]
[1641157726506,8.5479,175.52,175.45,36.55478622]
[1641157726904,8.5479,175.52,175.45,37.31478622]
[1641157730710,8.5479,175.52,175.45,28.50688622]
[1641157731214,8.5479,175.52,175.45,0.5]
[1641157731412,8.5479,175.52,175.44,9.0484]
[1641157733016,8.5479,175.52,175.44,0.5]
[1641157733416,8.5479,175.52,175.43,10.5342]
[1641157735130,1.2971,175.51,175.43,10.5342]
[1641157735324,8.5489,175.49,175.43,10.5342]
[1641157747779,8.5489,175.49,175.43,1.7253]
[1641157747977,8.5489,175.49,175.43,0.5]
[1641157748177,8.5489,175.49,175.41,1.60731716]
[1641157748380,8.5489,175.49,175.41,2.10731716]
[1641157748878,8.5489,175.49,175.41,0.5]
[1641157749279,8.5489,175.49,175.39,10.65771716]
[1641157749478,8.5489,175.49,175.39,10.91771716]
[1641157750378,1.2739,175.48,175.39,10.91771716]
[1641157750577,9.8237,175.48,175.39,10.91771716]
[1641157750782,9.8237,175.48,175.4,1.60731716]
[1641157750980,9.8237,175.48,175.4,2.36731716]
[1641157751179,9.8237,175.48,175.41,8.5498]
[1641157751402,9.8237,175.48,175.41,9.0498]
[1641157751605,9.8237,175.48,175.41,9.3098]
[1641157757610,9.8237,175.48,175.41,10.91711716]
[1641157758111,9.8237,175.48,175.41,10.65711716]
[1641157758510,8.5498,175.48,175.41,10.65711716]
[1641157758716,8.5489,175.49,175.41,10.65711716]
[1641157759514,8.5489,175.49,175.42,1.60731716]
[1641157759710,8.5489,175.49,175.42,10.15651716]
[1641157759911,8.5489,175.49,175.42,10.91651716]
[1641157766117,8.5489,175.49,175.43,1.60731716]
[1641157766520,8.5489,175.49,175.43,9.3089]
[1641157766717,8.5489,175.49,175.44,27.06521032]
[1641157766919,8.5489,175.49,175.44,27.56521032]
[1641157768822,8.5489,175.49,175.44,0.5]
[1641157769025,8.5489,175.49,175.43,9.3089]
[1641157771629,8.5489,175.49,175.43,9.0489]
[1641157771826,8.5489,175.49,175.43,9.3089]
[1641157775940,8.5489,175.49,175.43,9.0489]
[1641157776138,8.5489,175.49,175.43,9.3089]
[1641157778158,8.5489,175.49,175.43,9.0489]
[1641157778358,8.5489,175.49,175.43,9.3089]
[1641157780358,8.5489,175.49,175.43,9.0489]
[1641157780558,8.5489,175.49,175.43,9.3089]
[1641157783663,8.5485,175.5,175.43,9.3089]
[1641157784665,8.5485,175.5,175.43,9.0489]
[1641157784865,8.5485,175.5,175.43,9.3089]
[1641157794978,1.2807,175.54,175.43,9.3089]
[1641157795180,2.621,175.54,175.43,9.3089]
[1641157795778,2.621,175.54,175.44,1.2293]
[1641157795978,2.621,175.54,175.48,8.5465]
[1641157796180,1.3403,175.54,175.48,8.5465]
[1641157796379,1.3403,175.54,175.48,9.3065]
[1641157803291,1.3403,175.54,175.48,9.0465]
[1641157804493,1.3403,175.54,175.48,9.3065]
[1641157804895,9.8869,175.54,175.48,9.0465]
[1641157806297,9.8869,175.54,175.48,9.3065]
[1641157808908,9.8869,175.54,175.48,9.0465]
[1641157809107,9.8869,175.54,175.48,9.3065]
[1641157810104,9.8869,175.54,175.48,9.0465]
[1641157811530,1.3403,175.54,175.48,9.3065]
[1641157813432,9.8867,175.54,175.48,9.3065]
[1641157818643,1.3403,175.54,175.48,9.3065]
[1641157819040,8.546,175.55,175.48,9.3065]
[1641157820144,1.2914,175.57,175.48,9.3065]
[1641157820346,8.5455,175.56,175.48,9.3065]
[1641157825573,8.5455,175.56,175.48,0.5]
[1641157825773,18.57219368,175.56,175.47,1.60731716]
[1641157826370,1.62042053,175.54,175.44,1.60731716]
[1641157826571,8.5496,175.49,175.44,1.60731716]
[1641157826972,8.5496,175.49,175.44,2.10731716]
[1641157827373,8.5496,175.49,175.44,0.5]
[1641157827776,8.5496,175.49,175.41,88.98411716]
[1641157828773,8.5496,175.49,175.41,88.72411716]
[1641157830077,8.5496,175.49,175.41,87.3768]
[1641157831179,8.5496,175.49,175.41,86.8768]
[1641157832780,8.5496,175.49,175.41,88.48411716]
[1641157833582,1.3296,175.51,175.41,88.48411716]
[1641157833781,1.62042053,175.52,175.41,95.44011716]
[1641157833981,1.62042053,175.52,175.42,1.3199]
[1641157834182,1.62042053,175.52,175.42,31.23579368]
[1641157834481,1.62042053,175.53,175.43,1.60731716]
[1641157834882,1.62042053,175.53,175.43,2.36731716]
[1641157835282,1.2702,175.54,175.45,1.60731716]
[1641157835483,1.2702,175.54,175.45,2.36731716]
[1641157835885,8.547,175.53,175.47,8.5466]
[1641157836083,8.547,175.53,175.47,32.1328588]
[1641157836283,8.547,175.53,175.47,32.6328588]
[1641157837587,8.547,175.53,175.47,9.3066]
[1641157841392,9.8167,175.54,175.47,9.3066]
[1641157843892,9.8167,175.54,175.46,9.8396]
[1641157844091,9.8167,175.54,175.46,10.5996]
[1641157844592,11.43712053,175.54,175.46,10.5996]
[1641157844792,11.43712053,175.54,175.46,0.76]
[1641157844992,11.43712053,175.54,175.46,0.5]
[1641157845195,9.8167,175.54,175.44,2.36731716]
[1641157845694,1.2702,175.54,175.44,38.95401716]
[1641157846298,1.2702,175.54,175.45,1.2415]
[1641157846495,1.2702,175.54,175.48,8.5458]
[1641157846897,9.8166,175.54,175.48,9.3058]
[1641157847196,9.8166,175.54,175.48,0.76]
[1641157847396,9.8166,175.54,175.45,3.60881716]
[1641157847799,9.8166,175.54,175.45,2.0015]
[1641157848398,9.8166,175.54,175.45,1.7415]
[1641157848824,9.8166,175.54,175.46,8.5472]
[1641157849200,9.8166,175.54,175.46,9.0472]
[1641157849603,9.8166,175.54,175.46,9.3072]
[1641157854912,9.8166,175.54,175.46,9.0472]
[1641157856014,9.8166,175.54,175.46,9.3072]
[1641157859533,8.5464,175.54,175.46,9.3072]
[1641157859732,1.62042053,175.58,175.46,9.3072]
[1641157859733,1.2867,175.57,175.46,9.3072]
[1641157860233,2.90712053,175.57,175.46,10.91451716]
[1641157860533,2.90712053,175.57,175.49,8.5454]
[1641157860732,8.5455,175.56,175.49,8.5454]
[1641157860936,8.5455,175.56,175.49,9.3054]
[1641157861933,10.16592053,175.56,175.49,9.3054]
[1641157863138,8.5455,175.56,175.49,9.3054]
[1641157875853,8.5455,175.56,175.49,9.0454]
[1641157876052,8.5455,175.56,175.47,1.60731716]
[1641157876253,16.6455,175.56,175.47,1.60731716]
[1641157876454,17.1455,175.56,175.47,2.10731716]
[1641157876653,17.1455,175.56,175.47,1.60731716]
[1641157876854,8.5475,175.52,175.47,1.60731716]
[1641157877052,8.5475,175.52,175.44,2.94631716]
[1641157877254,8.5475,175.52,175.44,3.44631716]
[1641157877653,8.5475,175.52,175.45,1.60731716]
[1641157877856,8.5475,175.52,175.45,2.10731716]
[1641157878056,8.5475,175.52,175.45,2.36731716]
[1641157878958,8.5475,175.52,175.46,8.5471]
[1641157879360,8.5475,175.52,175.46,9.0471]
[1641157879561,8.5475,175.52,175.46,9.3071]
[1641157884890,8.5475,175.52,175.46,0.76]
[1641157885091,8.5475,175.52,175.46,0.5]
[1641157885291,8.5475,175.52,175.45,9.3077]
[1641157890501,8.5475,175.52,175.45,10.91501716]
[1641157891200,8.5475,175.52,175.45,9.3077]
[1641157896607,8.5475,175.52,175.45,10.91501716]
[1641157898812,8.547,175.53,175.45,10.91501716]
[1641157900317,8.547,175.53,175.45,1.60731716]
[1641157900919,9.047,175.53,175.45,1.60731716]
[1641157901338,1.3391,175.52,175.45,1.60731716]
[1641157901541,8.55,175.49,175.43,1.60731716]
[1641157902740,8.55,175.49,175.41,80.39141716]
[1641157902940,8.55,175.49,175.41,81.15141716]
[1641157904844,8.55,175.49,175.41,89.70101716]
[1641157909252,8.55,175.49,175.42,1.60731716]
[1641157909454,8.55,175.49,175.42,2.10731716]
[1641157909651,8.55,175.49,175.42,2.36731716]
[1641157910751,8.55,175.49,175.42,0.76]
[1641157910951,8.55,175.49,175.41,89.70101716]
[1641157911758,8.55,175.49,175.41,97.80101716]
[1641157911957,8.5483,175.51,175.41,97.80101716]
[1641157912159,1.62042053,175.52,175.41,104.29901716]
[1641157912358,1.62042053,175.52,175.42,1.60731716]
[1641157912584,1.62042053,175.52,175.47,8.546]
[1641157912757,1.62042053,175.52,175.47,8.806]
[1641157912958,1.62042053,175.52,175.47,9.306]
[1641157914160,8.5463,175.55,175.47,9.306]
[1641157914361,9.0463,175.55,175.47,9.306]
[1641157918862,9.0463,175.55,175.47,10.91331716]
[1641157920364,0.5,175.55,175.47,10.91331716]
[1641157920765,9.0455,175.56,175.47,10.91331716]
[1641157920962,8.5455,175.56,175.47,10.91331716]
[1641157921165,1.62042053,175.57,175.47,10.91331716]
[1641157921365,1.62042053,175.58,175.47,10.91331716]
[1641157921566,10.16532053,175.58,175.47,10.91331716]
[1641157921866,1.62042053,175.58,175.53,8.5438]
[1641157922068,1.62042053,175.58,175.53,8.8038]
[1641157922264,1.62042053,175.59,175.53,9.3038]
[1641157923077,10.16432053,175.6,175.53,9.3038]
[1641157929376,10.16432053,175.6,175.53,0.26]
[1641157929580,10.16432053,175.6,175.53,0.5]
[1641157930182,10.16432053,175.6,175.52,9.3043]
[1641157930979,1.62042053,175.6,175.53,1.42669368]
[1641157931178,1.62042053,175.6,175.56,8.541]
[1641157931380,1.62042053,175.65,175.56,17.141]
[1641157931578,1.62042053,175.65,175.56,17.401]
[1641157931982,1.3265677,175.66,175.56,17.401]
[1641157932780,1.3265677,175.66,175.58,31.65183272]
[1641157932979,1.3265677,175.66,175.61,8.5397]
[1641157933380,1.3265677,175.66,175.61,9.2997]
[1641157936280,2.94698823,175.66,175.61,9.2997]
[1641157940487,2.94698823,175.66,175.61,9.0397]
[1641157940691,1.3265677,175.66,175.61,0.5]
[1641157940887,1.3265677,175.66,175.6,9.0408]
[1641157941288,2.94698823,175.66,175.6,9.0408]
[1641157943118,2.94698823,175.66,175.55,9.70731716]
[1641157943319,2.94698823,175.66,175.55,1.60731716]
[1641157943517,3.44698823,175.66,175.55,1.60731716]
[1641157943917,3.44698823,175.66,175.55,2.10731716]
[1641157944117,1.62042053,175.63,175.55,0.5]
[1641157944519,1.62042053,175.63,175.53,17.1439]
[1641157944719,1.62042053,175.63,175.53,17.4039]
[1641157945419,8.5441,175.61,175.53,17.4039]
[1641157950828,8.5432,175.62,175.53,17.4039]
[1641157953234,8.5427,175.63,175.53,17.4039]
[1641157954033,2.86632053,175.64,175.53,17.4039]
[1641157954234,1.2459,175.64,175.53,17.4039]
[1641157955035,1.2459,175.64,175.54,1.302]
[1641157955240,9.7881,175.64,175.57,8.5423]
[1641157955436,9.7881,175.64,175.57,9.0423]
[1641157955634,9.7881,175.64,175.57,9.3023]
[1641157956446,1.2459,175.64,175.57,9.3023]
[1641157957239,1.62042053,175.68,175.57,9.3023]
[1641157957540,1.62042053,175.68,175.57,96.8886]
[1641157957947,1.62042053,175.68,175.58,1.2684]
[1641157958145,11.43082053,175.69,175.62,8.5397]
[1641157958344,11.43082053,175.69,175.58,1.5284]
[1641157958545,11.93082053,175.69,175.58,0.5]
[1641157959146,11.93082053,175.69,175.57,72.9083]